[Event "Late-Titled-Tuesday-Blitz-October-24-2023"]
[Site "Chess.com"]
[Date "2023.10.24"]
[Round "4"]
[White "Nekoo04"]
[Black "Gyulamiryan-koryun"]
[Result "1-0"]
[WhiteElo "2246"]
[BlackElo "1944"]
[TimeControl "180+1"]
[EndTime "14:40:52 PDT"]
[Termination "Nekoo04 won on time"]

1. e4 {[%clk 0:02:41.1]} 1... e5 {[%clk 0:02:58.8]} 2. Nc3 {[%clk 0:02:41]} 2...
Nc6 {[%clk 0:02:57.8]} 3. Bc4 {[%clk 0:02:41.4]} 3... Nf6 {[%clk 0:02:55.6]} 4.
d3 {[%clk 0:02:41.4]} 4... Na5 {[%clk 0:02:55.5]} 5. Bb3 {[%clk 0:02:39.4]} 5...
Nxb3 {[%clk 0:02:55.4]} 6. axb3 {[%clk 0:02:40.3]} 6... a6 {[%clk 0:02:55.9]} 7.
f4 {[%clk 0:02:40.2]} 7... exf4 {[%clk 0:02:54.3]} 8. Nf3 {[%clk 0:02:34.6]}
8... Bc5 {[%clk 0:02:37.9]} 9. Bxf4 {[%clk 0:02:32]} 9... O-O {[%clk 0:02:37.2]}
10. Qd2 {[%clk 0:01:57.4]} 10... d6 {[%clk 0:02:33.9]} 11. Bg5 {[%clk
0:01:55.4]} 11... Re8 {[%clk 0:02:24.5]} 12. Nd5 {[%clk 0:01:44.7]} 12... c6
{[%clk 0:02:19.8]} 13. Nxf6+ {[%clk 0:01:41.1]} 13... gxf6 {[%clk 0:02:19.9]}
14. Bh4 {[%clk 0:01:41.2]} 14... Kh8 {[%clk 0:01:59.8]} 15. Qc3 {[%clk 0:01:28]}
15... Re6 {[%clk 0:01:50.1]} 16. Ng5 {[%clk 0:01:27]} 16... Qb6 {[%clk
0:01:24.2]} 17. Nxe6 {[%clk 0:00:47.1]} 17... Bb4 {[%clk 0:01:14.3]} 18. Bxf6+
{[%clk 0:00:44.6]} 18... Kg8 {[%clk 0:01:13.7]} 19. Nd4 {[%clk 0:00:38.8]} 19...
Bxc3+ {[%clk 0:01:13.4]} 20. bxc3 {[%clk 0:00:38.9]} 20... c5 {[%clk 0:01:09]}
21. Nf3 {[%clk 0:00:36.8]} 21... d5 {[%clk 0:01:07.4]} 22. e5 {[%clk 0:00:36.9]}
22... Bf5 {[%clk 0:00:58.7]} 23. O-O {[%clk 0:00:35.9]} 23... Bg6 {[%clk
0:00:57.6]} 24. Kh1 {[%clk 0:00:29.7]} 24... c4 {[%clk 0:00:57]} 25. bxc4 {[%clk
0:00:26.6]} 25... dxc4 {[%clk 0:00:57.2]} 26. Rab1 {[%clk 0:00:24.1]} 26... Qe3
{[%clk 0:00:46.8]} 27. Rxb7 {[%clk 0:00:21.3]} 27... cxd3 {[%clk 0:00:45.8]} 28.
Rfb1 {[%clk 0:00:20.3]} 28... Rf8 {[%clk 0:00:25.6]} 29. Rb8 {[%clk 0:00:20.2]}
29... Qc5 {[%clk 0:00:18.8]} 30. cxd3 {[%clk 0:00:11.9]} 30... Bxd3 {[%clk
0:00:17.7]} 31. Rxf8+ {[%clk 0:00:11.4]} 31... Qxf8 {[%clk 0:00:16.6]} 32. Rd1
{[%clk 0:00:12]} 32... Bb5 {[%clk 0:00:13.9]} 33. Rd8 {[%clk 0:00:11]} 33... h5
{[%clk 0:00:12.6]} 34. Rxf8+ {[%clk 0:00:10.4]} 34... Kxf8 {[%clk 0:00:12.3]}
35. Nd4 {[%clk 0:00:10.4]} 35... Bc4 {[%clk 0:00:11.6]} 36. Kg1 {[%clk
0:00:10.7]} 36... Ke8 {[%clk 0:00:11.7]} 37. Kf2 {[%clk 0:00:10.9]} 37... Kd7
{[%clk 0:00:12.4]} 38. Ke3 {[%clk 0:00:11]} 38... a5 {[%clk 0:00:12.8]} 39. Nc2
{[%clk 0:00:10.7]} 39... a4 {[%clk 0:00:12.6]} 40. Kd4 {[%clk 0:00:10.5]} 40...
Be6 {[%clk 0:00:12]} 41. c4 {[%clk 0:00:10.2]} 41... a3 {[%clk 0:00:12]} 42.
Nxa3 {[%clk 0:00:10.3]} 42... Kc6 {[%clk 0:00:11.3]} 43. h3 {[%clk 0:00:10.1]}
43... Bf5 {[%clk 0:00:07.7]} 44. c5 {[%clk 0:00:10.3]} 44... Be6 {[%clk
0:00:07.5]} 45. Nc4 {[%clk 0:00:10.2]} 45... Kb5 {[%clk 0:00:07.1]} 46. Nd6+
{[%clk 0:00:10.2]} 46... Kc6 {[%clk 0:00:07.1]} 47. Ne4 {[%clk 0:00:10.7]} 47...
Bd5 {[%clk 0:00:06.7]} 48. g4 {[%clk 0:00:10]} 48... hxg4 {[%clk 0:00:06.2]} 49.
hxg4 {[%clk 0:00:10.9]} 49... Be6 {[%clk 0:00:05.8]} 50. g5 {[%clk 0:00:10.5]}
50... Bf5 {[%clk 0:00:06]} 51. Ng3 {[%clk 0:00:10.7]} 51... Bg6 {[%clk
0:00:05.3]} 52. Ne2 {[%clk 0:00:10.9]} 52... Bf5 {[%clk 0:00:04.9]} 53. Nf4
{[%clk 0:00:11.5]} 53... Bc2 {[%clk 0:00:03.8]} 54. e6 {[%clk 0:00:10.2]} 54...
fxe6 {[%clk 0:00:02.4]} 55. g6 {[%clk 0:00:10.7]} 1-0

[Event "Late-Titled-Tuesday-Blitz-October-24-2023"]
[Site "Chess.com"]
[Date "2023.10.24"]
[Round "4"]
[White "Nyzhnyk_Illia"]
[Black "KATPAH"]
[Result "1-0"]
[WhiteElo "2849"]
[BlackElo "2639"]
[TimeControl "180+1"]
[EndTime "14:40:54 PDT"]
[Termination "Nyzhnyk_Illia won by resignation"]

1. c4 {[%clk 0:03:00.9]} 1... Nf6 {[%clk 0:02:59.8]} 2. Nc3 {[%clk 0:02:55.3]}
2... e5 {[%clk 0:02:59.6]} 3. Nf3 {[%clk 0:02:53.7]} 3... Nc6 {[%clk 0:02:58.5]}
4. e3 {[%clk 0:02:54.3]} 4... d5 {[%clk 0:02:57.6]} 5. cxd5 {[%clk 0:02:53]}
5... Nxd5 {[%clk 0:02:58.5]} 6. Bb5 {[%clk 0:02:53.3]} 6... Nxc3 {[%clk
0:02:54.2]} 7. bxc3 {[%clk 0:02:54.2]} 7... Bd6 {[%clk 0:02:53.7]} 8. d4 {[%clk
0:02:54.4]} 8... exd4 {[%clk 0:02:53.8]} 9. cxd4 {[%clk 0:02:50]} 9... O-O
{[%clk 0:02:52.1]} 10. O-O {[%clk 0:02:50]} 10... Bg4 {[%clk 0:02:51.6]} 11. h3
{[%clk 0:02:49.4]} 11... Bh5 {[%clk 0:02:51.5]} 12. Bb2 {[%clk 0:02:48.7]} 12...
Ne7 {[%clk 0:02:44.2]} 13. e4 {[%clk 0:02:47.1]} 13... c6 {[%clk 0:02:43]} 14.
Be2 {[%clk 0:02:47]} 14... Bg6 {[%clk 0:02:35.7]} 15. Nd2 {[%clk 0:02:46.8]}
15... Bb4 {[%clk 0:02:34.9]} 16. f3 {[%clk 0:02:45.2]} 16... f5 {[%clk
0:02:22.9]} 17. Qb3+ {[%clk 0:02:45]} 17... Nd5 {[%clk 0:02:18.9]} 18. exd5
{[%clk 0:02:34.9]} 18... Bxd2 {[%clk 0:02:18.8]} 19. dxc6+ {[%clk 0:02:35.6]}
19... Bf7 {[%clk 0:02:14.4]} 20. Qd3 {[%clk 0:02:35]} 20... Bf4 {[%clk
0:02:06.2]} 21. cxb7 {[%clk 0:02:33.5]} 21... Rb8 {[%clk 0:02:05.4]} 22. Qxf5
{[%clk 0:02:32.3]} 22... Bd5 {[%clk 0:02:01.5]} 23. Qg4 {[%clk 0:02:20.4]} 23...
Rxb7 {[%clk 0:01:39]} 24. Ba3 {[%clk 0:02:17]} 24... Rf6 {[%clk 0:01:35.4]} 25.
Bd3 {[%clk 0:02:03.7]} 25... Be6 {[%clk 0:01:33.4]} 26. Qh5 {[%clk 0:01:59.9]}
26... Qxd4+ {[%clk 0:01:33.3]} 27. Kh1 {[%clk 0:01:59.9]} 27... g6 {[%clk
0:01:23.4]} 28. Qh4 {[%clk 0:01:36.3]} 28... g5 {[%clk 0:00:59.8]} 29. Qh5
{[%clk 0:01:30.2]} 29... Qxd3 {[%clk 0:01:00]} 30. Qe8+ {[%clk 0:01:28.1]} 30...
Kg7 {[%clk 0:01:00.5]} 31. Be7 {[%clk 0:01:12]} 31... Rf7 {[%clk 0:00:50.7]} 32.
Bxg5 {[%clk 0:01:12.1]} 32... Bxg5 {[%clk 0:00:50.6]} 33. Qxe6 {[%clk
0:01:12.8]} 33... Qf5 {[%clk 0:00:50.5]} 34. Qc4 {[%clk 0:01:12.4]} 34... Qf4
{[%clk 0:00:47.4]} 35. Qd5 {[%clk 0:01:07.3]} 35... Bf6 {[%clk 0:00:44.6]} 36.
Rae1 {[%clk 0:01:05.7]} 36... Rbe7 {[%clk 0:00:44.7]} 37. Qh5 {[%clk 0:00:52.1]}
37... Qg3 {[%clk 0:00:38.7]} 38. Re4 {[%clk 0:00:48.1]} 38... Rxe4 {[%clk
0:00:27.9]} 39. fxe4 {[%clk 0:00:49]} 39... Qg6 {[%clk 0:00:28.3]} 40. Qd5
{[%clk 0:00:43.8]} 40... Qg5 {[%clk 0:00:27.3]} 41. Rf5 {[%clk 0:00:43.5]} 41...
Qc1+ {[%clk 0:00:26.7]} 42. Kh2 {[%clk 0:00:44]} 42... Qc7+ {[%clk 0:00:26.7]}
43. e5 {[%clk 0:00:43.4]} 43... Re7 {[%clk 0:00:15.8]} 44. Rxf6 {[%clk
0:00:40.6]} 44... Rxe5 {[%clk 0:00:16.3]} 45. Rf7+ {[%clk 0:00:41.3]} 45... Qxf7
{[%clk 0:00:16.7]} 46. Qxe5+ {[%clk 0:00:41.9]} 46... Kg8 {[%clk 0:00:16.7]} 47.
a4 {[%clk 0:00:41.3]} 47... Qd7 {[%clk 0:00:13.8]} 48. a5 {[%clk 0:00:41.3]}
48... a6 {[%clk 0:00:12.8]} 49. Kg3 {[%clk 0:00:41.3]} 49... Qb7 {[%clk
0:00:10.8]} 50. Kh4 {[%clk 0:00:41.3]} 50... Qb4+ {[%clk 0:00:09.7]} 51. Kh5
{[%clk 0:00:40.5]} 51... Qb7 {[%clk 0:00:09.2]} 52. g4 {[%clk 0:00:37.4]} 52...
Qf7+ {[%clk 0:00:08.8]} 53. Kg5 {[%clk 0:00:37.2]} 53... Qg6+ {[%clk 0:00:08.1]}
54. Kh4 {[%clk 0:00:37.8]} 54... Qh6+ {[%clk 0:00:07.9]} 55. Kg3 {[%clk
0:00:37.7]} 55... Qd2 {[%clk 0:00:06.5]} 56. h4 {[%clk 0:00:37.6]} 56... Qd3+
{[%clk 0:00:06.1]} 57. Kf4 {[%clk 0:00:37]} 57... Qd2+ {[%clk 0:00:06.5]} 58.
Kf5 {[%clk 0:00:37.3]} 58... Qd3+ {[%clk 0:00:06.7]} 59. Kg5 {[%clk 0:00:37]}
59... Qd2+ {[%clk 0:00:06.7]} 60. Kf5 {[%clk 0:00:37]} 60... Qd3+ {[%clk
0:00:06.9]} 61. Kf6 {[%clk 0:00:36.2]} 61... Qg6+ {[%clk 0:00:04.8]} 62. Ke7
{[%clk 0:00:36.8]} 62... Qxg4 {[%clk 0:00:04.6]} 63. Qf6 {[%clk 0:00:36.6]}
63... Qe4+ {[%clk 0:00:04.2]} 64. Qe6+ {[%clk 0:00:35.1]} 64... Qxe6+ {[%clk
0:00:04.8]} 65. Kxe6 {[%clk 0:00:36]} 65... Kg7 {[%clk 0:00:04.6]} 66. Kd6
{[%clk 0:00:36.9]} 66... Kf7 {[%clk 0:00:04.7]} 67. Kc6 {[%clk 0:00:37.8]} 67...
Ke6 {[%clk 0:00:04.7]} 68. Kb6 {[%clk 0:00:38.7]} 68... Kd6 {[%clk 0:00:05.3]}
69. Kxa6 {[%clk 0:00:39.3]} 69... Kc6 {[%clk 0:00:05.8]} 70. Ka7 {[%clk
0:00:38.5]} 70... Kc7 {[%clk 0:00:05.8]} 71. h5 {[%clk 0:00:38.7]} 71... Kc6
{[%clk 0:00:04.5]} 72. h6 {[%clk 0:00:34]} 72... Kc7 {[%clk 0:00:04.8]} 73. a6
{[%clk 0:00:34.8]} 73... Kc8 {[%clk 0:00:04.7]} 74. Kb6 {[%clk 0:00:35.6]} 74...
Kb8 {[%clk 0:00:05.5]} 75. Kc6 {[%clk 0:00:36.3]} 75... Ka7 {[%clk 0:00:06.4]}
76. Kd7 {[%clk 0:00:36.8]} 76... Kxa6 {[%clk 0:00:07.3]} 77. Ke7 {[%clk
0:00:37.7]} 77... Kb7 {[%clk 0:00:08.2]} 78. Kf7 {[%clk 0:00:38.6]} 78... Kc7
{[%clk 0:00:09.1]} 79. Kg7 {[%clk 0:00:39.4]} 79... Kd7 {[%clk 0:00:09.4]} 80.
Kxh7 {[%clk 0:00:40.3]} 80... Ke7 {[%clk 0:00:10.3]} 81. Kg8 {[%clk 0:00:41.1]}
81... Ke6 {[%clk 0:00:11.2]} 82. h7 {[%clk 0:00:42]} 1-0

[Event "Late-Titled-Tuesday-Blitz-October-24-2023"]
[Site "Chess.com"]
[Date "2023.10.24"]
[Round "4"]
[White "BeanScreen"]
[Black "SanchezKelvin"]
[Result "0-1"]
[WhiteElo "2704"]
[BlackElo "2567"]
[TimeControl "180+1"]
[EndTime "14:40:55 PDT"]
[Termination "SanchezKelvin won on time"]

1. e4 {[%clk 0:03:00.9]} 1... e5 {[%clk 0:02:59.4]} 2. Nf3 {[%clk 0:03:00.7]}
2... Nc6 {[%clk 0:02:58.8]} 3. Bc4 {[%clk 0:03:00.5]} 3... Bc5 {[%clk
0:02:57.8]} 4. d3 {[%clk 0:03:00.2]} 4... Nf6 {[%clk 0:02:56.7]} 5. c3 {[%clk
0:02:59.8]} 5... d6 {[%clk 0:02:56.3]} 6. O-O {[%clk 0:02:58.3]} 6... a5 {[%clk
0:02:56.3]} 7. Re1 {[%clk 0:02:55.7]} 7... O-O {[%clk 0:02:54.9]} 8. h3 {[%clk
0:02:54.5]} 8... Be6 {[%clk 0:02:54.9]} 9. Bb5 {[%clk 0:02:53.6]} 9... Na7
{[%clk 0:02:49.3]} 10. Ba4 {[%clk 0:02:53.1]} 10... b5 {[%clk 0:02:49.4]} 11.
Bc2 {[%clk 0:02:52.5]} 11... Bb6 {[%clk 0:02:31.1]} 12. d4 {[%clk 0:02:47]}
12... exd4 {[%clk 0:02:30.8]} 13. cxd4 {[%clk 0:02:45.4]} 13... c5 {[%clk
0:02:30.6]} 14. d5 {[%clk 0:02:29.6]} 14... Bd7 {[%clk 0:02:21.7]} 15. a4 {[%clk
0:02:29.3]} 15... bxa4 {[%clk 0:02:17.8]} 16. Bf4 {[%clk 0:02:25.5]} 16... Bc7
{[%clk 0:02:14.3]} 17. Bxa4 {[%clk 0:02:09]} 17... Bxa4 {[%clk 0:02:13.3]} 18.
Qxa4 {[%clk 0:02:08.7]} 18... Nd7 {[%clk 0:02:13.9]} 19. Nbd2 {[%clk 0:02:04.2]}
19... Nc8 {[%clk 0:01:54.3]} 20. Qc2 {[%clk 0:01:57.3]} 20... Ncb6 {[%clk
0:01:50.6]} 21. Ra3 {[%clk 0:01:28.8]} 21... Re8 {[%clk 0:01:44.1]} 22. Bg5
{[%clk 0:01:23.7]} 22... Qc8 {[%clk 0:01:36.5]} 23. Nh4 {[%clk 0:01:19.1]} 23...
h6 {[%clk 0:01:32.6]} 24. Bf4 {[%clk 0:00:53.7]} 24... Nxd5 {[%clk 0:01:14.6]}
25. Bxh6 {[%clk 0:00:23]} 25... Nb4 {[%clk 0:01:02.4]} 26. Qc3 {[%clk
0:00:19.4]} 26... Ne5 {[%clk 0:00:48.9]} 27. Qg3 {[%clk 0:00:18.3]} 27... g6
{[%clk 0:00:42]} 28. f4 {[%clk 0:00:18.1]} 28... Kh7 {[%clk 0:00:33]} 29. Qg5
{[%clk 0:00:09.5]} 29... Bd8 {[%clk 0:00:28.8]} 30. Qg3 {[%clk 0:00:05.7]} 30...
Nec6 {[%clk 0:00:26.2]} 31. Bg5 {[%clk 0:00:03.3]} 31... Bxg5 {[%clk 0:00:25.8]}
32. Qxg5 {[%clk 0:00:03.3]} 32... Qd8 {[%clk 0:00:25.7]} 33. Rg3 {[%clk
0:00:01.8]} 33... Qxg5 {[%clk 0:00:24.7]} 34. Rxg5 {[%clk 0:00:02.7]} 34... Nd4
{[%clk 0:00:20.5]} 35. f5 {[%clk 0:00:02.4]} 35... Kh6 {[%clk 0:00:19.4]} 36.
Rg3 {[%clk 0:00:02.1]} 36... g5 {[%clk 0:00:17.5]} 37. Nhf3 {[%clk 0:00:02]}
37... f6 {[%clk 0:00:17.1]} 38. Nh2 {[%clk 0:00:00.7]} 38... d5 {[%clk 0:00:17]}
39. Ng4+ {[%clk 0:00:01.6]} 39... Kg7 {[%clk 0:00:16.6]} 40. e5 {[%clk
0:00:02.4]} 40... Nxf5 {[%clk 0:00:15.3]} 41. exf6+ {[%clk 0:00:02.3]} 41... Kg6
{[%clk 0:00:15.9]} 42. Rxe8 {[%clk 0:00:02.7]} 42... Rxe8 {[%clk 0:00:15.4]} 43.
Rf3 {[%clk 0:00:03.6]} 43... Nd4 {[%clk 0:00:14.4]} 44. Rf2 {[%clk 0:00:03.6]}
44... Rf8 {[%clk 0:00:12.9]} 45. f7 {[%clk 0:00:03.4]} 45... Nbc6 {[%clk
0:00:11.5]} 46. Rf6+ {[%clk 0:00:02.6]} 46... Kg7 {[%clk 0:00:11.9]} 47. Nf3
{[%clk 0:00:02.9]} 47... Rxf7 {[%clk 0:00:12]} 48. Rxf7+ {[%clk 0:00:02.6]}
48... Kxf7 {[%clk 0:00:11.9]} 49. Nxg5+ {[%clk 0:00:03.5]} 49... Ke7 {[%clk
0:00:12.1]} 50. h4 {[%clk 0:00:03]} 50... a4 {[%clk 0:00:12.2]} 51. h5 {[%clk
0:00:03.2]} 51... Nf5 {[%clk 0:00:08.5]} 52. h6 {[%clk 0:00:03]} 52... Nh4
{[%clk 0:00:07.1]} 53. h7 {[%clk 0:00:03.9]} 53... Ng6 {[%clk 0:00:07.6]} 54.
Nh6 {[%clk 0:00:03.6]} 54... Nce5 {[%clk 0:00:07]} 55. Nf5+ {[%clk 0:00:03.4]}
55... Kf6 {[%clk 0:00:06.6]} 56. Nd6 {[%clk 0:00:00.8]} 56... Kxg5 {[%clk
0:00:05.9]} 0-1

[Event "Late-Titled-Tuesday-Blitz-October-24-2023"]
[Site "Chess.com"]
[Date "2023.10.24"]
[Round "4"]
[White "Eloist"]
[Black "campochess"]
[Result "1/2-1/2"]
[WhiteElo "2439"]
[BlackElo "2219"]
[TimeControl "180+1"]
[EndTime "14:40:55 PDT"]
[Termination "Game drawn - insufficient material"]

1. e4 {[%clk 0:02:59.6]} 1... c5 {[%clk 0:02:59.1]} 2. Nf3 {[%clk 0:02:59.2]}
2... Nc6 {[%clk 0:02:59.1]} 3. Bb5 {[%clk 0:02:59.2]} 3... e5 {[%clk 0:02:57.8]}
4. O-O {[%clk 0:02:56.2]} 4... Nge7 {[%clk 0:02:57.8]} 5. c3 {[%clk 0:02:54.7]}
5... a6 {[%clk 0:02:55.4]} 6. Ba4 {[%clk 0:02:51]} 6... d6 {[%clk 0:02:49.9]} 7.
d4 {[%clk 0:02:49.7]} 7... b5 {[%clk 0:02:49.9]} 8. Bb3 {[%clk 0:02:47.7]} 8...
c4 {[%clk 0:02:46.2]} 9. Bc2 {[%clk 0:02:46.9]} 9... Bg4 {[%clk 0:02:45]} 10.
Be3 {[%clk 0:02:38]} 10... Ng6 {[%clk 0:02:38.3]} 11. h3 {[%clk 0:02:37.5]}
11... Bd7 {[%clk 0:02:34]} 12. b3 {[%clk 0:02:35]} 12... cxb3 {[%clk 0:02:31.1]}
13. axb3 {[%clk 0:02:34.6]} 13... Be7 {[%clk 0:02:28.9]} 14. d5 {[%clk
0:02:27.1]} 14... Na5 {[%clk 0:02:21.1]} 15. Nbd2 {[%clk 0:02:22.8]} 15... Nb7
{[%clk 0:02:20.7]} 16. b4 {[%clk 0:02:19.8]} 16... Qc7 {[%clk 0:02:18.4]} 17.
Ra3 {[%clk 0:02:09.5]} 17... O-O {[%clk 0:02:16.8]} 18. Qe2 {[%clk 0:02:01.9]}
18... a5 {[%clk 0:02:11.8]} 19. Bd3 {[%clk 0:01:54.3]} 19... axb4 {[%clk
0:02:10.1]} 20. Rxa8 {[%clk 0:01:53.8]} 20... Rxa8 {[%clk 0:02:09.7]} 21. cxb4
{[%clk 0:01:52.2]} 21... Nd8 {[%clk 0:01:42.3]} 22. Bxb5 {[%clk 0:01:45.6]}
22... Bxb5 {[%clk 0:01:42]} 23. Qxb5 {[%clk 0:01:45.4]} 23... Rb8 {[%clk
0:01:41.2]} 24. Qe8+ {[%clk 0:01:43]} 24... Nf8 {[%clk 0:01:41.1]} 25. Qa4
{[%clk 0:01:25.1]} 25... Qc3 {[%clk 0:01:35.8]} 26. Rb1 {[%clk 0:01:21.4]} 26...
Qd3 {[%clk 0:01:16.5]} 27. Qb3 {[%clk 0:01:17.7]} 27... Qb5 {[%clk 0:01:12.7]}
28. Qc4 {[%clk 0:01:15.4]} 28... Qb7 {[%clk 0:01:09.2]} 29. b5 {[%clk
0:01:13.8]} 29... Rc8 {[%clk 0:01:04.4]} 30. Qb4 {[%clk 0:01:13.6]} 30... f5
{[%clk 0:01:03.3]} 31. Bg5 {[%clk 0:00:42.8]} 31... fxe4 {[%clk 0:00:47.1]} 32.
Bxe7 {[%clk 0:00:37.6]} 32... Qxe7 {[%clk 0:00:46.8]} 33. Nxe4 {[%clk
0:00:36.9]} 33... Nb7 {[%clk 0:00:46.1]} 34. b6 {[%clk 0:00:33.8]} 34... Nd7
{[%clk 0:00:45.5]} 35. Qb2 {[%clk 0:00:26.6]} 35... Ndc5 {[%clk 0:00:39.7]} 36.
Rc1 {[%clk 0:00:23.9]} 36... Qd7 {[%clk 0:00:34.1]} 37. Nxc5 {[%clk 0:00:23.3]}
37... Rxc5 {[%clk 0:00:28.6]} 38. Rxc5 {[%clk 0:00:22.2]} 38... Nxc5 {[%clk
0:00:28.5]} 39. Ng5 {[%clk 0:00:17.1]} 39... h6 {[%clk 0:00:26.9]} 40. Ne6
{[%clk 0:00:15.2]} 40... Nb7 {[%clk 0:00:19.6]} 41. Qc3 {[%clk 0:00:12.9]} 41...
Kf7 {[%clk 0:00:19]} 42. Qc7 {[%clk 0:00:12.8]} 42... Ke7 {[%clk 0:00:19]} 43.
Qxd7+ {[%clk 0:00:10.8]} 43... Kxd7 {[%clk 0:00:18.9]} 44. Nxg7 {[%clk
0:00:11.7]} 44... Na5 {[%clk 0:00:18.3]} 45. g4 {[%clk 0:00:10.6]} 45... Nc4
{[%clk 0:00:16.7]} 46. Nf5 {[%clk 0:00:10.6]} 46... Nxb6 {[%clk 0:00:15.3]} 47.
Ne3 {[%clk 0:00:09.2]} 47... Na4 {[%clk 0:00:13.8]} 48. Kg2 {[%clk 0:00:09.1]}
48... Nc3 {[%clk 0:00:13.7]} 49. Kg3 {[%clk 0:00:09.2]} 49... Ne2+ {[%clk
0:00:13.4]} 50. Kh4 {[%clk 0:00:09.3]} 50... Nf4 {[%clk 0:00:13]} 51. g5 {[%clk
0:00:09.6]} 51... hxg5+ {[%clk 0:00:11.9]} 52. Kg4 {[%clk 0:00:09.7]} 52... Ke7
{[%clk 0:00:10]} 53. Kxg5 {[%clk 0:00:09.2]} 53... Nxh3+ {[%clk 0:00:08.9]} 54.
Kg6 {[%clk 0:00:06.7]} 54... Nxf2 {[%clk 0:00:09.5]} 55. Nf5+ {[%clk 0:00:06.6]}
55... Kd7 {[%clk 0:00:09.5]} 56. Kf6 {[%clk 0:00:06.3]} 56... Nd3 {[%clk
0:00:09.2]} 57. Ne3 {[%clk 0:00:05.7]} 57... Nf4 {[%clk 0:00:08.9]} 58. Kf5
{[%clk 0:00:05.6]} 58... Ne2 {[%clk 0:00:09]} 59. Ke4 {[%clk 0:00:05.7]} 59...
Nc3+ {[%clk 0:00:09.1]} 60. Kd3 {[%clk 0:00:05.8]} 60... Nb5 {[%clk 0:00:09.2]}
61. Kc4 {[%clk 0:00:05.8]} 61... Nd4 {[%clk 0:00:09.2]} 62. Kd3 {[%clk
0:00:06.1]} 62... Ke7 {[%clk 0:00:09.3]} 63. Ke4 {[%clk 0:00:06.3]} 63... Nb5
{[%clk 0:00:08.8]} 64. Nc4 {[%clk 0:00:06.3]} 64... Nc7 {[%clk 0:00:08.6]} 65.
Nxe5 {[%clk 0:00:06.3]} 65... Nxd5 {[%clk 0:00:07.7]} 66. Kxd5 {[%clk
0:00:05.6]} 66... dxe5 {[%clk 0:00:07.7]} 67. Kxe5 {[%clk 0:00:06.5]} 1/2-1/2

[Event "Late-Titled-Tuesday-Blitz-October-24-2023"]
[Site "Chess.com"]
[Date "2023.10.24"]
[Round "4"]
[White "gahryman"]
[Black "koncheto"]
[Result "0-1"]
[WhiteElo "2677"]
[BlackElo "2560"]
[TimeControl "180+1"]
[EndTime "14:40:56 PDT"]
[Termination "koncheto won by resignation"]

1. e4 {[%clk 0:03:00.9]} 1... c5 {[%clk 0:02:56.3]} 2. Nc3 {[%clk 0:02:59.1]}
2... e6 {[%clk 0:02:55.1]} 3. g3 {[%clk 0:02:50.5]} 3... g6 {[%clk 0:02:54.6]}
4. Bg2 {[%clk 0:02:50.3]} 4... Bg7 {[%clk 0:02:55]} 5. Nge2 {[%clk 0:02:50.6]}
5... Nc6 {[%clk 0:02:54.6]} 6. d3 {[%clk 0:02:43.4]} 6... d6 {[%clk 0:02:47.2]}
7. Be3 {[%clk 0:02:42.1]} 7... Nd4 {[%clk 0:02:46.2]} 8. Qd2 {[%clk 0:02:42]}
8... Ne7 {[%clk 0:02:40.2]} 9. O-O {[%clk 0:02:36.4]} 9... O-O {[%clk 0:02:37]}
10. Nd1 {[%clk 0:02:36.4]} 10... Rb8 {[%clk 0:02:31.1]} 11. f4 {[%clk
0:02:27.4]} 11... b5 {[%clk 0:02:27.3]} 12. c3 {[%clk 0:02:23.5]} 12... Nxe2+
{[%clk 0:02:26.6]} 13. Qxe2 {[%clk 0:02:24.4]} 13... b4 {[%clk 0:02:18.6]} 14.
Qd2 {[%clk 0:02:08.9]} 14... bxc3 {[%clk 0:02:06.4]} 15. Nxc3 {[%clk 0:02:04.9]}
15... Qb6 {[%clk 0:01:49.8]} 16. Rf2 {[%clk 0:01:57.2]} 16... Nc6 {[%clk
0:01:48.1]} 17. f5 {[%clk 0:01:54.5]} 17... exf5 {[%clk 0:01:36.4]} 18. Bh6
{[%clk 0:01:28.2]} 18... Bd4 {[%clk 0:01:14.7]} 19. Bxf8 {[%clk 0:01:18.1]}
19... Qxb2 {[%clk 0:01:06.1]} 20. Qxb2 {[%clk 0:00:22.6]} 20... Rxb2 {[%clk
0:01:04.3]} 21. Nd1 {[%clk 0:00:23.5]} 21... Bxf2+ {[%clk 0:00:22.9]} 22. Nxf2
{[%clk 0:00:24.4]} 22... Kxf8 {[%clk 0:00:20.5]} 23. exf5 {[%clk 0:00:24.9]}
23... Nd4 {[%clk 0:00:18.1]} 24. fxg6 {[%clk 0:00:24.7]} 24... fxg6 {[%clk
0:00:18.2]} 25. Ne4 {[%clk 0:00:25.1]} 25... Nf5 {[%clk 0:00:11.3]} 26. Rf1
{[%clk 0:00:24.2]} 26... Kg7 {[%clk 0:00:08.7]} 27. Bh3 {[%clk 0:00:22.6]} 27...
Ne3 {[%clk 0:00:05.4]} 28. Bxc8 {[%clk 0:00:21.9]} 28... Nxf1 {[%clk 0:00:05.2]}
29. Kxf1 {[%clk 0:00:22.8]} 29... Rxh2 {[%clk 0:00:03.6]} 30. a4 {[%clk
0:00:22.3]} 30... Ra2 {[%clk 0:00:03.3]} 31. Bd7 {[%clk 0:00:22.2]} 31... d5
{[%clk 0:00:02.1]} 32. Nxc5 {[%clk 0:00:22.1]} 32... Ra3 {[%clk 0:00:02.8]} 33.
Ke2 {[%clk 0:00:21.8]} 33... d4 {[%clk 0:00:02.9]} 34. Ne6+ {[%clk 0:00:21]}
34... Kf6 {[%clk 0:00:03.5]} 35. Nxd4 {[%clk 0:00:21.9]} 35... h5 {[%clk
0:00:03.8]} 36. Nf3 {[%clk 0:00:21.6]} 36... Ra2+ {[%clk 0:00:03.8]} 37. Ke3
{[%clk 0:00:21.6]} 37... a5 {[%clk 0:00:04.7]} 38. Nd2 {[%clk 0:00:21.3]} 38...
Ke5 {[%clk 0:00:03.5]} 39. Nc4+ {[%clk 0:00:21.1]} 39... Kf6 {[%clk 0:00:02.5]}
40. Nxa5 {[%clk 0:00:21.5]} 40... Kg5 {[%clk 0:00:02.9]} 41. Nc4 {[%clk
0:00:21.3]} 41... Kf6 {[%clk 0:00:03.3]} 42. a5 {[%clk 0:00:20]} 42... g5 {[%clk
0:00:03.9]} 43. Bc8 {[%clk 0:00:20.3]} 43... h4 {[%clk 0:00:04.2]} 44. gxh4
{[%clk 0:00:20.7]} 44... gxh4 {[%clk 0:00:05.1]} 45. a6 {[%clk 0:00:21.1]} 45...
Ke7 {[%clk 0:00:04.6]} 46. d4 {[%clk 0:00:16.5]} 46... h3 {[%clk 0:00:04.4]} 47.
Bxh3 {[%clk 0:00:15.5]} 47... Rxa6 {[%clk 0:00:04.5]} 48. Bf1 {[%clk 0:00:15.7]}
48... Rh6 {[%clk 0:00:04.5]} 49. Bd3 {[%clk 0:00:16.6]} 49... Rh3+ {[%clk
0:00:04.4]} 50. Ke4 {[%clk 0:00:16.8]} 50... Rh4+ {[%clk 0:00:05.1]} 51. Kd5
{[%clk 0:00:17.3]} 51... Rh5+ {[%clk 0:00:05.5]} 52. Ne5 {[%clk 0:00:17.4]}
52... Kd8 {[%clk 0:00:03.7]} 53. Ke6 {[%clk 0:00:16.9]} 53... Rh1 {[%clk
0:00:03.2]} 54. Bf5 {[%clk 0:00:16.6]} 54... Rd1 {[%clk 0:00:03.3]} 55. Nd3
{[%clk 0:00:16.5]} 55... Kc7 {[%clk 0:00:03]} 56. d5 {[%clk 0:00:16.9]} 56...
Kd8 {[%clk 0:00:02]} 57. d6 {[%clk 0:00:17.2]} 57... Ra1 {[%clk 0:00:02.3]} 58.
Nc5 {[%clk 0:00:17]} 58... Ra7 {[%clk 0:00:02.6]} 59. Kd5 {[%clk 0:00:16.2]}
59... Rf7 {[%clk 0:00:01.8]} 60. Ne6+ {[%clk 0:00:16.2]} 60... Kc8 {[%clk
0:00:01.3]} 61. Ng5+ {[%clk 0:00:16.4]} 61... Rxf5+ {[%clk 0:00:01.8]} 62. Ke6
{[%clk 0:00:12]} 62... Rxg5 {[%clk 0:00:02.7]} 63. Ke7 {[%clk 0:00:12.6]} 63...
Rg7+ {[%clk 0:00:02.7]} 64. Ke8 {[%clk 0:00:12.1]} 64... Rd7 {[%clk 0:00:03.6]}
0-1